[Event "3rd FIDE WCCC Rapid U10 2019"]
[Site "Minsk"]
[Date "2019.08.17"]
[Round "5.6"]
[White "Morkunas, Gustas"]
[Black "Pham, Tran Gia Phuc"]
[Result "1/2-1/2"]
[ECO "B47"]
[WhiteElo "1400"]
[BlackElo "1645"]
[Annotator "NA"]
[PlyCount "353"]
[EventDate "2019.08.16"]
[EventType "swiss"]
[EventCountry "BLR"]
[SourceTitle "playchess.com"]
[Source "ChessBase"]
[SourceQuality "1"]
[TimeControl "600+5"]

1. e4 {[%emt 0:00:00]} c5 {[%emt 0:00:00]} 2. Nf3 {[%emt 0:00:00]} e6 {[%emt 0:00:00]} 3. d4 {[%emt 0:00:00]} cxd4 {[%emt 0:00:00]} 4. Nxd4 {[%emt 0:00:01]} Nc6 {[%emt 0:00:00]} 5. Nc3 {[%emt 0:00:01]} Qc7 {[%emt 0:00:00]} 6. g3 {[%emt 0:00:03]} a6 {[%emt 0:00:01]} 7. Bg2 {[%emt 0:00:01]} Nf6 {[%emt 0:00:01]} 8. O-O {[%emt 0:00:04]} Be7 {[%emt 0:00:01]} 9. Re1 {[%emt 0:00:15]} d6 {[%emt 0:00:08]} 10. Nxc6 {[%emt 0:00:05]} bxc6 {[%emt 0:00:02]} 11. Na4 {[%emt 0:00:03]} e5 {[%emt 0:00:04]} 12. c4 {[%emt 0:00:11]} Be6 {[%emt 0:00:06]} 13. b3 {[%emt 0:00:04]} O-O {[%emt 0:00:02]} 14. Bb2 {[%emt 0:00:02]} Nd7 {[%emt 0:00:17]} 15. Qd2 {[%emt 0:00:04]} Rfd8 {[%emt 0:00:25]} 16. Bc3 {[%emt 0:00:04]} Qb7 {[%emt 0:00:07]} 17. Ba5 {[%emt 0:00:03]} Rdc8 {[%emt 0:00:01]} 18. Rad1 {[%emt 0:00:13]} Rab8 {[%emt 0:00:14]} 19. Kh1 {[%emt 0:00:30]} c5 {[%emt 0:00:47]} 20. Nc3 {[%emt 0:00:40]} Nf8 {[%emt 0:00:11]} 21. f4 {[%emt 0:00:32]} f6 {[%emt 0:00:54]} 22. h3 {[%emt 0:00:57]} Qc6 {[%emt 0:00:26]} 23. f5 {[%emt 0:00:18]} Bf7 {[%emt 0:00:01]} 24. g4 {[%emt 0:01:55]} Nd7 {[%emt 0:02:09]} 25. Bf3 {[%emt 0:00:49]} Rb7 {[%emt 0:01:39]} 26. h4 {[%emt 0:00:27]} Nb8 {[%emt 0:00:11]} 27. Nd5 {[%emt 0:00:17]} Bxd5 {[%emt 0:00:03]} 28. exd5 {[%emt 0:00:05]} Qe8 {[%emt 0:00:01]} 29. Be4 {[%emt 0:00:05]} Nd7 {[%emt 0:00:35]} 30. Qg2 {[%emt 0:00:12]} Nf8 {[%emt 0:00:09]} 31. Kg1 {[%emt 0:00:02]} h6 {[%emt 0:00:04]} 32. Bd2 {[%emt 0:00:21]} Nh7 {[%emt 0:00:02]} 33. Re3 {[%emt 0:00:49]} Bd8 {[%emt 0:00:25]} 34. Rg3 {[%emt 0:00:14]} a5 {[%emt 0:00:03]} 35. Bc2 {[%emt 0:00:33]} Rf7 {[%emt 0:01:22]} 36. Re1 {[%emt 0:00:16]} Qd7 {[%emt 0:00:11]} 37. Qh2 {[%emt 0:00:42]} Rc7 {[%emt 0:00:08]} 38. Bxa5 {[%emt 0:00:14]} Ra7 {[%emt 0:00:00]} 39. Bxd8 Qxd8 {[%emt 0:00:01]} 40. a4 {[%emt 0:00:13]} Qa5 {[%emt 0:00:01]} 41. Qe2 {[%emt 0:00:07]} Qb4 {[%emt 0:00:07]} 42. Rf1 {[%emt 0:00:08]} Rab7 {[%emt 0:00:10]} 43. Qe1 {[%emt 0:00:22]} Qa3 {[%emt 0:00:07]} 44. Qc3 {[%emt 0:00:05]} Qb4 {[%emt 0:00:20]} 45. Qxb4 {[%emt 0:00:13]} cxb4 {[%emt 0:00:01]} 46. Bd3 {[%emt 0:00:11]} Rfc7 {[%emt 0:00:03]} 47. Rc1 {[%emt 0:00:06]} Rc5 {[%emt 0:00:01]} 48. Rg2 {[%emt 0:00:10]} Re7 {[%emt 0:00:02]} 49. Be4 {[%emt 0:00:07]} Ra7 {[%emt 0:00:07]} 50. Ra2 {[%emt 0:00:07]} Nf8 {[%emt 0:00:08]} 51. Kf2 {[%emt 0:00:02]} Kf7 {[%emt 0:00:05]} 52. Ke3 {[%emt 0:00:05]} Nd7 {[%emt 0:00:27]} 53. Rca1 {[%emt 0:00:12]} Rca5 {[%emt 0:00:01]} 54. Rb1 {[%emt 0:00:06]} Nc5 {[%emt 0:00:01]} 55. Rc2 {[%emt 0:00:04]} Ra8 {[%emt 0:00:10]} 56. Rcc1 {[%emt 0:00:09]} Rh8 {[%emt 0:00:03]} 57. Rh1 {[%emt 0:00:08]} Raa8 {[%emt 0:00:19]} 58. Kf3 {[%emt 0:00:08]} Ke7 {[%emt 0:00:36]} 59. h5 {[%emt 0:00:02]} Kd7 {[%emt 0:00:07]} 60. Ke3 {[%emt 0:00:01]} Kc7 {[%emt 0:00:03]} 61. Bf3 {[%emt 0:00:05]} Kb6 {[%emt 0:00:05]} 62. Be4 {[%emt 0:00:01]} Nd7 {[%emt 0:00:01]} 63. Ra1 {[%emt 0:00:07]} Ra5 {[%emt 0:00:03]} 64. Rac1 {[%emt 0:00:04]} Kc5 {[%emt 0:00:01]} 65. Bf3 {[%emt 0:00:15]} Nf8 {[%emt 0:00:07]} 66. Be4 {[%emt 0:00:07]} Nh7 {[%emt 0:00:01]} 67. Rh2 {[%emt 0:00:04]} Ng5 {[%emt 0:00:01]} 68. Rhh1 {[%emt 0:00:01]} Rha8 {[%emt 0:00:02]} 69. Rh2 {[%emt 0:00:04]} Nf7 {[%emt 0:00:23]} 70. Rhh1 {[%emt 0:00:02]} Nd8 {[%emt 0:00:04]} 71. Ra1 {[%emt 0:00:02]} Nb7 {[%emt 0:00:04]} 72. Bd3 {[%emt 0:00:05]} Kb6 {[%emt 0:00:01]} 73. Be4 {[%emt 0:00:05]} Nc5 {[%emt 0:00:01]} 74. Rab1 {[%emt 0:00:04]} R5a7 {[%emt 0:00:07]} 75. Rb2 {[%emt 0:00:03]} Ka5 {[%emt 0:00:08]} 76. Rbb1 {[%emt 0:00:01]} Rc8 {[%emt 0:00:12]} 77. Rb2 {[%emt 0:00:03]} Nd7 {[%emt 0:00:01]} 78. Rc1 {[%emt 0:00:05]} Nb6 {[%emt 0:00:01]} 79. Bd3 {[%emt 0:00:10]} Rac7 {[%emt 0:00:04]} 80. Rbc2 {[%emt 0:00:05]} Nd7 {[%emt 0:00:27]} 81. Be4 {[%emt 0:00:03]} Nc5 {[%emt 0:00:01]} 82. Rb2 {[%emt 0:00:02]} Re7 {[%emt 0:00:08]} 83. Rd1 {[%emt 0:00:06]} Nd7 {[%emt 0:00:21]} 84. Rc1 {[%emt 0:00:05]} Kb6 {[%emt 0:00:04]} 85. Rbc2 {[%emt 0:00:02]} Rce8 {[%emt 0:00:10]} 86. Rb2 {[%emt 0:00:03]} Nc5 {[%emt 0:00:01]} 87. Rd1 {[%emt 0:00:04]} Ra7 {[%emt 0:00:03]} 88. Ra1 {[%emt 0:00:05]} Rea8 {[%emt 0:00:11]} 89. Rbb1 {[%emt 0:00:01]} Nd7 {[%emt 0:00:03]} 90. Rb2 {[%emt 0:00:01]} Kc5 {[%emt 0:00:01]} 91. Rh2 {[%emt 0:00:06]} Rb8 {[%emt 0:00:06]} 92. Rc2 {[%emt 0:00:03]} Rba8 {[%emt 0:00:09]} 93. Kd3 {[%emt 0:00:08]} Kb6 {[%emt 0:00:01]} 94. Ke3 {[%emt 0:00:01]} Nc5 {[%emt 0:00:07]} 95. Rb2 {[%emt 0:00:01]} Ka5 {[%emt 0:00:03]} 96. Rab1 {[%emt 0:00:07]} Re7 {[%emt 0:00:01]} 97. Ra1 {[%emt 0:00:01]} Rd7 {[%emt 0:00:02]} 98. Rab1 {[%emt 0:00:01]} Raa7 {[%emt 0:00:02]} 99. Ra1 {[%emt 0:00:02]} Rab7 {[%emt 0:00:02]} 100. Rab1 {[%emt 0:00:02]} Rb8 {[%emt 0:00:01]} 101. Ra1 {[%emt 0:00:01]} Rc7 {[%emt 0:00:07]} 102. Rc1 {[%emt 0:00:04]} Rb6 {[%emt 0:00:12]} 103. Rcb1 {[%emt 0:00:03]} Ka6 {[%emt 0:00:02]} 104. Rc2 {[%emt 0:00:02]} Ra7 {[%emt 0:00:03]} 105. Ra2 {[%emt 0:00:09]} Ka5 {[%emt 0:00:01]} 106. Rc2 {[%emt 0:00:03]} Rc7 {[%emt 0:00:02]} 107. Rcb2 {[%emt 0:00:05]} Rb8 {[%emt 0:00:08]} 108. Rc2 {[%emt 0:00:02]} Rbc8 {[%emt 0:00:01]} 109. Rbb2 {[%emt 0:00:19]} Nd7 {[%emt 0:00:05]} 110. Rb1 {[%emt 0:00:03]} Nb6 {[%emt 0:00:01]} 111. Rbc1 {[%emt 0:00:05]} Rc5 {[%emt 0:00:06]} 112. Kd3 {[%emt 0:00:04]} R8c7 {[%emt 0:00:07]} 113. Ke3 {[%emt 0:00:01]} Re7 {[%emt 0:00:01]} 114. Kd3 {[%emt 0:00:01]} Re8 {[%emt 0:00:03]} 115. Ke3 {[%emt 0:00:01]} Nd7 {[%emt 0:00:02]} 116. Rb2 {[%emt 0:00:05]} Nf8 {[%emt 0:00:01]} 117. Rh2 {[%emt 0:00:04]} Nh7 {[%emt 0:00:01]} 118. Rb1 {[%emt 0:00:02]} Rec8 {[%emt 0:00:03]} 119. Rc1 {[%emt 0:00:01]} Ng5 {[%emt 0:00:04]} 120. Rb1 {[%emt 0:00:02]} Nf7 {[%emt 0:00:17]} 121. Rc1 {[%emt 0:00:04]} Nd8 {[%emt 0:00:01]} 122. Rb1 {[%emt 0:00:02]} Nb7 {[%emt 0:00:04]} 123. Rc2 {[%emt 0:00:01]} R8c7 {[%emt 0:00:02]} 124. Rd2 {[%emt 0:00:01]} Kb6 {[%emt 0:00:01]} 125. Rc2 {[%emt 0:00:02]} Na5 {[%emt 0:00:01]} 126. Kd3 {[%emt 0:00:04]} Ka6 {[%emt 0:00:05]} 127. Rbb2 {[%emt 0:00:03]} Rb7 {[%emt 0:00:04]} 128. Rb1 {[%emt 0:00:02]} Rb6 {[%emt 0:00:01]} 129. Rcb2 {[%emt 0:00:04]} Rc7 {[%emt 0:00:01]} 130. Rc2 {[%emt 0:00:01]} Nb7 {[%emt 0:00:01]} 131. Ke3 {[%emt 0:00:02]} Nc5 {[%emt 0:00:01]} 132. Rd2 {[%emt 0:00:06]} Ka5 {[%emt 0:00:08]} 133. Rc2 {[%emt 0:00:04]} Nxe4 {[%emt 0:00:01]} 134. Kxe4 {[%emt 0:00:01]} Rc5 {[%emt 0:00:01]} 135. Rbc1 {[%emt 0:00:03]} Rb7 {[%emt 0:00:00]} 136. Rd1 {[%emt 0:00:02]} Rbc7 {[%emt 0:00:01]} 137. Rdc1 {[%emt 0:00:01]} Rd7 {[%emt 0:00:01]} 138. Rd1 {[%emt 0:00:01]} Re7 {[%emt 0:00:12]} 139. Rdc1 {[%emt 0:00:02]} Kb6 {[%emt 0:00:03]} 140. Rd1 {[%emt 0:00:01]} Ra5 {[%emt 0:00:01]} 141. Rdc1 {[%emt 0:00:01]} Kc5 {[%emt 0:00:01]} 142. Rd1 {[%emt 0:00:01]} Rea7 {[%emt 0:00:06]} 143. Rdc1 {[%emt 0:00:01]} R7a6 {[%emt 0:00:01]} 144. Rd1 {[%emt 0:00:01]} Ra8 {[%emt 0:00:10]} 145. Rdc1 {[%emt 0:00:01]} Re8 {[%emt 0:00:01]} 146. Rd1 {[%emt 0:00:01]} Re7 {[%emt 0:00:00]} 147. Rdc1 {[%emt 0:00:00]} Rc7 {[%emt 0:00:01]} 148. Rd1 {[%emt 0:00:01]} Kb6 {[%emt 0:00:01]} 149. Rdc1 {[%emt 0:00:02]} Rcc5 {[%emt 0:00:01]} 150. Rd1 {[%emt 0:00:02]} Ra7 {[%emt 0:00:00]} 151. Rdc1 {[%emt 0:00:00]} Raa5 {[%emt 0:00:00]} 152. Rd2 {[%emt 0:00:00]} Kb7 {[%emt 0:00:00]} 153. Rdc2 {[%emt 0:00:00]} Ra8 {[%emt 0:00:00]} 154. Rd2 {[%emt 0:00:00]} Re8 {[%emt 0:00:00]} 155. Rdc2 Re7 156. Rd2 Rd7 {[%emt 0:00:00]} 157. Rdc2 {[%emt 0:00:00]} Kb6 158. Rd2 {[%emt 0:00:00]} Kb7 {[%emt 0:00:00]} 159. Rdc2 {[%emt 0:00:00]} Kc8 {[%emt 0:00:00]} 160. Rd2 {[%emt 0:00:00]} Ra7 {[%emt 0:00:00]} 161. Rdc2 Kd8 162. Rd2 Ke8 163. Rdc2 {[%emt 0:00:00]} Kf7 {[%emt 0:00:00]} 164. Rd2 {[%emt 0:00:00]} Kg8 {[%emt 0:00:00]} 165. Rdc2 {[%emt 0:00:00]} Kh7 {[%emt 0:00:00]} 166. Rd2 {[%emt 0:00:00]} Raa5 {[%emt 0:00:00]} 167. Rdc2 {[%emt 0:00:00]} Rc7 {[%emt 0:00:00]} 168. Rd2 {[%emt 0:00:00]} Rac5 {[%emt 0:00:00]} 169. Rdc2 {[%emt 0:00:00]} Kg8 {[%emt 0:00:00]} 170. Rd2 {[%emt 0:00:00]} Kf7 {[%emt 0:00:00]} 171. Rdc2 {[%emt 0:00:00]} Ke7 {[%emt 0:00:00]} 172. Rd2 {[%emt 0:00:00]} Kd8 {[%emt 0:00:00]} 173. Rdc2 {[%emt 0:00:00]} Kc8 {[%emt 0:00:00]} 174. Rd2 Ra7 175. Rdc2 {[%emt 0:00:00]} Kb7 {[%emt 0:00:00]} 176. Rd2 {[%emt 0:00:00]} Kb6 {[%emt 0:00:00]} 177. Rdc2 {[%emt 0:00:00]} 1/2-1/2

[Event "3rd FIDE WCCC Rapid U10 2019"]
[Site "Minsk"]
[Date "2019.08.17"]
[Round "6.1"]
[White "Vetokhin, Savva"]
[Black "Zverev, Lev"]
[Result "1/2-1/2"]
[ECO "C84"]
[WhiteElo "2016"]
[BlackElo "1881"]
[Annotator "NA"]
[PlyCount "80"]
[EventDate "2019.08.16"]
[EventType "swiss"]
[EventCountry "BLR"]
[SourceTitle "playchess.com"]
[Source "ChessBase"]
[SourceQuality "1"]
[TimeControl "600+5"]

1. e4 {[%emt 0:00:00]} e5 {[%emt 0:00:00]} 2. Nf3 {[%emt 0:00:00]} Nc6 {[%emt 0:00:00]} 3. Bb5 {[%emt 0:00:00]} a6 {[%emt 0:00:00]} 4. Ba4 {[%emt 0:00:00]} Nf6 {[%emt 0:00:01]} 5. O-O {[%emt 0:00:03]} Be7 {[%emt 0:00:04]} 6. d3 {[%emt 0:00:01]} b5 {[%emt 0:00:01]} 7. Bb3 {[%emt 0:00:00]} O-O {[%emt 0:00:02]} 8. Nc3 {[%emt 0:00:02]} d6 {[%emt 0:00:05]} 9. a3 {[%emt 0:00:01]} Be6 {[%emt 0:00:13]} 10. Bxe6 {[%emt 0:00:32]} fxe6 {[%emt 0:00:02]} 11. d4 {[%emt 0:00:14]} exd4 {[%emt 0:00:02]} 12. Nxd4 {[%emt 0:00:01]} Nxd4 {[%emt 0:00:02]} 13. Qxd4 {[%emt 0:00:01]} c5 {[%emt 0:00:14]} 14. Qd3 {[%emt 0:00:08]} d5 {[%emt 0:00:38]} 15. e5 {[%emt 0:01:04]} Nd7 {[%emt 0:00:03]} 16. f4 {[%emt 0:00:01]} Qb6 {[%emt 0:00:41]} 17. Qg3 {[%emt 0:00:27]} Qc6 {[%emt 0:02:15]} 18. Re1 {[%emt 0:01:21]} Rf7 {[%emt 0:00:52]} 19. Bd2 {[%emt 0:00:22]} Raf8 {[%emt 0:00:05]} 20. Rad1 {[%emt 0:00:22]} Nb6 {[%emt 0:00:43]} 21. Bc1 {[%emt 0:00:19]} d4 {[%emt 0:00:22]} 22. Ne4 {[%emt 0:00:11]} Nd5 {[%emt 0:00:02]} 23. Qf3 {[%emt 0:02:07]} Kh8 {[%emt 0:00:24]} 24. g3 {[%emt 0:00:04]} g5 {[%emt 0:01:19]} 25. Rf1 {[%emt 0:00:11]} gxf4 {[%emt 0:00:12]} 26. gxf4 {[%emt 0:00:01]} Qc7 {[%emt 0:00:24]} 27. Kg2 {[%emt 0:00:45]} Qc6 {[%emt 0:02:28]} 28. c3 {[%emt 0:00:40]} Qb6 {[%emt 0:00:18]} 29. cxd4 {[%emt 0:00:10]} cxd4 {[%emt 0:00:02]} 30. Qf2 {[%emt 0:00:18]} Qc6 {[%emt 0:00:28]} 31. Qf3 {[%emt 0:00:09]} Qb6 {[%emt 0:00:05]} 32. b4 {[%emt 0:00:08]} Rf5 {[%emt 0:00:09]} 33. Qf2 {[%emt 0:01:43]} Qc6 {[%emt 0:00:05]} 34. Rxd4 {[%emt 0:00:11]} Nc3 {[%emt 0:00:12]} 35. Qf3 {[%emt 0:00:08]} Nd5 {[%emt 0:00:03]} 36. Bd2 {[%emt 0:00:13]} Qc2 {[%emt 0:00:10]} 37. Rc1 {[%emt 0:00:14]} Qb2 {[%emt 0:00:01]} 38. Rxd5 {[%emt 0:00:14]} exd5 {[%emt 0:00:01]} 39. Qc3 {[%emt 0:00:07]} Qxc3 {[%emt 0:00:14]} 40. Nxc3 {[%emt 0:00:01]} d4 {[%emt 0:00:04]} 1/2-1/2

[Event "3rd FIDE WCCC Rapid U10 2019"]
[Site "Minsk"]
[Date "2019.08.17"]
[Round "6.2"]
[White "Misiuk, Martynas"]
[Black "Samunenkov, Ihor"]
[Result "0-1"]
[ECO "B02"]
[WhiteElo "1331"]
[BlackElo "1964"]
[Annotator "NA"]
[PlyCount "50"]
[EventDate "2019.08.16"]
[EventType "swiss"]
[EventCountry "BLR"]
[SourceTitle "playchess.com"]
[Source "ChessBase"]
[SourceQuality "1"]
[TimeControl "600+5"]

1. e4 {[%emt 0:00:00]} Nf6 {[%emt 0:00:00]} 2. Nc3 {[%emt 0:00:12]} d5 {[%emt 0:00:01]} 3. exd5 {[%emt 0:00:11]} Nxd5 {[%emt 0:00:01]} 4. Bc4 {[%emt 0:00:11]} c6 {[%emt 0:00:05]} 5. d3 {[%emt 0:00:09]} e6 {[%emt 0:01:25]} 6. Nf3 {[%emt 0:00:14]} Nd7 {[%emt 0:00:06]} 7. O-O {[%emt 0:00:17]} Be7 {[%emt 0:00:07]} 8. Ne2 {[%emt 0:00:42]} O-O {[%emt 0:00:05]} 9. Nf4 {[%emt 0:00:06]} N7f6 {[%emt 0:00:54]} 10. Re1 {[%emt 0:00:38]} Qc7 {[%emt 0:00:29]} 11. Ne5 {[%emt 0:03:42]} Bd6 {[%emt 0:01:19]} 12. d4 {[%emt 0:00:03]} Rd8 {[%emt 0:00:09]} 13. Qf3 {[%emt 0:00:34]} b5 {[%emt 0:01:25]} 14. Bd3 {[%emt 0:00:28]} Bb7 {[%emt 0:01:24]} 15. Qh3 {[%emt 0:00:32]} g6 {[%emt 0:01:09]} 16. Qh4 {[%emt 0:01:53]} Be7 {[%emt 0:00:38]} 17. Qh3 {[%emt 0:00:16]} Bf8 {[%emt 0:00:57]} 18. Nxe6 {[%emt 0:00:16]} fxe6 {[%emt 0:00:23]} 19. Qxe6+ {[%emt 0:00:06]} Kg7 {[%emt 0:00:05]} 20. Bh6+ {[%emt 0:00:32]} Kxh6 {[%emt 0:00:12]} 21. Nf7+ {[%emt 0:00:27]} Kg7 {[%emt 0:00:05]} 22. Nxd8 {[%emt 0:00:05]} Rxd8 {[%emt 0:00:05]} 23. Qh3 {[%emt 0:00:07]} Nf4 {[%emt 0:00:11]} 24. Qg3 {[%emt 0:00:05]} Bd6 {[%emt 0:00:05]} 25. Qe3 {[%emt 0:00:05]} N6d5 0-1

[Event "3rd FIDE WCCC Rapid U10 2019"]
[Site "Minsk"]
[Date "2019.08.17"]
[Round "6.3"]
[White "Toktomushev, Teimur"]
[Black "Koshulyan, Egor A."]
[Result "0-1"]
[ECO "D05"]
[WhiteElo "1977"]
[BlackElo "1872"]
[Annotator "NA"]
[PlyCount "162"]
[EventDate "2019.08.16"]
[EventType "swiss"]
[EventCountry "BLR"]
[SourceTitle "playchess.com"]
[Source "ChessBase"]
[SourceQuality "1"]
[TimeControl "600+5"]

1. d4 {[%emt 0:00:00]} Nf6 {[%emt 0:00:00]} 2. Nf3 {[%emt 0:00:00]} d5 {[%emt 0:00:00]} 3. e3 {[%emt 0:00:02]} e6 {[%emt 0:00:04]} 4. Bd3 {[%emt 0:00:02]} Bd6 {[%emt 0:00:02]} 5. b3 {[%emt 0:00:03]} O-O {[%emt 0:00:03]} 6. Bb2 {[%emt 0:00:01]} b6 {[%emt 0:00:01]} 7. O-O {[%emt 0:00:01]} Bb7 {[%emt 0:00:01]} 8. Nbd2 {[%emt 0:00:05]} Nbd7 9. Ne5 {[%emt 0:00:16]} Ne4 {[%emt 0:00:07]} 10. Nxe4 {[%emt 0:00:49]} dxe4 {[%emt 0:00:03]} 11. Bc4 {[%emt 0:00:06]} Nf6 {[%emt 0:01:23]} 12. Qe2 {[%emt 0:00:39]} a6 {[%emt 0:00:05]} 13. a4 {[%emt 0:00:38]} c6 {[%emt 0:00:35]} 14. Qe1 {[%emt 0:01:11]} Qc7 {[%emt 0:00:34]} 15. Ba3 {[%emt 0:00:31]} Rfd8 {[%emt 0:00:14]} 16. Bxd6 {[%emt 0:00:06]} Qxd6 {[%emt 0:00:01]} 17. Be2 {[%emt 0:00:31]} c5 {[%emt 0:00:35]} 18. Nc4 {[%emt 0:00:52]} Qc7 {[%emt 0:00:31]} 19. c3 {[%emt 0:00:36]} Nd5 {[%emt 0:00:11]} 20. Rc1 {[%emt 0:00:50]} Rac8 {[%emt 0:00:38]} 21. Qd2 {[%emt 0:00:28]} Nf6 {[%emt 0:00:22]} 22. Qb2 {[%emt 0:00:14]} Nd5 {[%emt 0:01:02]} 23. Nd2 {[%emt 0:00:28]} Ne7 {[%emt 0:00:15]} 24. Nc4 {[%emt 0:00:15]} Nd5 {[%emt 0:00:04]} 25. Nd2 {[%emt 0:00:03]} Ne7 {[%emt 0:00:03]} 26. b4 {[%emt 0:00:17]} Qd7 {[%emt 0:00:28]} 27. Nc4 {[%emt 0:00:16]} Nd5 {[%emt 0:00:04]} 28. Ne5 {[%emt 0:00:22]} Qe7 {[%emt 0:00:17]} 29. bxc5 {[%emt 0:00:47]} bxc5 {[%emt 0:00:01]} 30. Rb1 {[%emt 0:00:09]} Ba8 {[%emt 0:00:11]} 31. Bxa6 {[%emt 0:00:07]} Rc7 {[%emt 0:00:01]} 32. Bb5 {[%emt 0:00:28]} Rb8 {[%emt 0:00:11]} 33. Qa3 {[%emt 0:00:10]} cxd4 {[%emt 0:01:56]} 34. Qxe7 {[%emt 0:00:02]} Rxe7 {[%emt 0:00:02]} 35. cxd4 {[%emt 0:00:09]} Rc7 {[%emt 0:00:35]} 36. Bc6 {[%emt 0:00:22]} Rbc8 {[%emt 0:00:15]} 37. Bxa8 {[%emt 0:00:14]} Rxa8 {[%emt 0:00:01]} 38. Ra1 {[%emt 0:00:23]} f6 {[%emt 0:00:02]} 39. Ng4 {[%emt 0:00:26]} h5 {[%emt 0:00:01]} 40. h3 {[%emt 0:00:12]} hxg4 {[%emt 0:00:01]} 41. hxg4 {[%emt 0:00:00]} Rca7 {[%emt 0:00:00]} 42. g5 {[%emt 0:00:10]} Rxa4 {[%emt 0:00:03]} 43. Rab1 {[%emt 0:00:04]} fxg5 {[%emt 0:00:03]} 44. Rb7 {[%emt 0:00:03]} R4a7 {[%emt 0:00:02]} 45. Rb5 {[%emt 0:00:06]} Ra1 {[%emt 0:00:04]} 46. g3 {[%emt 0:00:05]} Rxf1+ 47. Kxf1 {[%emt 0:00:01]} Kf7 {[%emt 0:00:05]} 48. Rb7+ {[%emt 0:00:01]} Kf6 {[%emt 0:00:01]} 49. Rd7 {[%emt 0:00:03]} Ra1+ {[%emt 0:00:03]} 50. Kg2 {[%emt 0:00:01]} Ra2 {[%emt 0:00:02]} 51. Kg1 {[%emt 0:00:09]} g6 {[%emt 0:00:09]} 52. Rd8 {[%emt 0:00:01]} Ra7 {[%emt 0:00:08]} 53. Rf8+ {[%emt 0:00:03]} Rf7 {[%emt 0:00:01]} 54. Rd8 {[%emt 0:00:01]} Kf5 {[%emt 0:00:02]} 55. Kg2 {[%emt 0:00:02]} Kf6 {[%emt 0:00:03]} 56. Kg1 {[%emt 0:00:07]} g4 {[%emt 0:00:01]} 57. Rh8 {[%emt 0:00:03]} Kg5 {[%emt 0:00:02]} 58. Re8 {[%emt 0:00:02]} Kf5 {[%emt 0:00:02]} 59. Kg2 {[%emt 0:00:03]} Nf6 {[%emt 0:00:03]} 60. Rd8 {[%emt 0:00:02]} Nh7 {[%emt 0:00:05]} 61. Rh8 {[%emt 0:00:01]} Ng5 {[%emt 0:00:02]} 62. Rd8 {[%emt 0:00:05]} Nf3 {[%emt 0:00:01]} 63. d5 {[%emt 0:00:07]} exd5 {[%emt 0:00:08]} 64. Rxd5+ {[%emt 0:00:02]} Ke6 {[%emt 0:00:01]} 65. Ra5 {[%emt 0:00:03]} Rh7 {[%emt 0:00:02]} 66. Ra6+ {[%emt 0:00:01]} Kf5 {[%emt 0:00:04]} 67. Ra5+ {[%emt 0:00:01]} Ke6 {[%emt 0:00:04]} 68. Ra6+ Kd5 {[%emt 0:00:01]} 69. Ra1 {[%emt 0:00:22]} Rh2+ {[%emt 0:00:01]} 70. Kf1 {[%emt 0:00:00]} Rh1+ 71. Ke2 Nd4+ {[%emt 0:00:02]} 72. exd4 {[%emt 0:00:09]} Rxa1 {[%emt 0:00:02]} 73. Ke3 {[%emt 0:00:01]} g5 {[%emt 0:00:02]} 74. Kd2 {[%emt 0:00:06]} Kxd4 {[%emt 0:00:01]} 75. Ke2 {[%emt 0:00:00]} Ra2+ {[%emt 0:00:01]} 76. Kf1 {[%emt 0:00:01]} Kd3 {[%emt 0:00:11]} 77. Kg1 {[%emt 0:00:06]} Ke2 {[%emt 0:00:02]} 78. Kg2 {[%emt 0:00:03]} Ke1 {[%emt 0:00:01]} 79. Kh2 {[%emt 0:00:07]} Kxf2 {[%emt 0:00:03]} 80. Kh1 {[%emt 0:00:02]} Kxg3 {[%emt 0:00:02]} 81. Kg1 {[%emt 0:00:01]} Ra1# {[%emt 0:00:02]} 0-1

[Event "3rd FIDE WCCC Rapid U10 2019"]
[Site "Minsk"]
[Date "2019.08.17"]
[Round "6.4"]
[White "Zimin, Artur"]
[Black "Tiulyagin, Matvey"]
[Result "1/2-1/2"]
[ECO "A40"]
[WhiteElo "1672"]
[BlackElo "1348"]
[Annotator "NA"]
[PlyCount "103"]
[EventDate "2019.08.16"]
[EventType "swiss"]
[EventCountry "BLR"]
[SourceTitle "playchess.com"]
[Source "ChessBase"]
[SourceQuality "1"]
[TimeControl "600+5"]

1. d4 {[%emt 0:00:00]} e6 {[%emt 0:00:00]} 2. Nc3 {[%emt 0:00:00]} b6 {[%emt 0:00:00]} 3. e4 {[%emt 0:00:00]} Bb7 {[%emt 0:00:00]} 4. Be3 {[%emt 0:00:00]} Bb4 {[%emt 0:00:00]} 5. f3 {[%emt 0:00:01]} Nf6 {[%emt 0:00:04]} 6. a3 {[%emt 0:00:04]} Be7 {[%emt 0:00:04]} 7. Bd3 {[%emt 0:00:05]} d6 {[%emt 0:00:09]} 8. Nge2 {[%emt 0:00:02]} Nbd7 {[%emt 0:00:01]} 9. O-O {[%emt 0:00:08]} a6 {[%emt 0:00:01]} 10. Nb1 {[%emt 0:00:42]} Rc8 {[%emt 0:00:08]} 11. Nd2 {[%emt 0:00:03]} c5 {[%emt 0:00:02]} 12. c3 {[%emt 0:00:00]} Qc7 {[%emt 0:00:02]} 13. f4 {[%emt 0:00:15]} c4 {[%emt 0:00:20]} 14. Bc2 {[%emt 0:00:11]} b5 {[%emt 0:00:08]} 15. Ng3 {[%emt 0:00:05]} Qb8 {[%emt 0:00:10]} 16. Qe2 {[%emt 0:00:53]} Qa8 17. h3 {[%emt 0:00:54]} Nb8 {[%emt 0:00:46]} 18. Qf2 {[%emt 0:00:45]} Nc6 {[%emt 0:00:21]} 19. e5 {[%emt 0:00:47]} Nd7 {[%emt 0:01:01]} 20. exd6 {[%emt 0:01:42]} Bf6 {[%emt 0:00:09]} 21. Nde4 {[%emt 0:00:14]} O-O {[%emt 0:00:22]} 22. Nc5 {[%emt 0:02:15]} Ncb8 {[%emt 0:01:38]} 23. Nxb7 {[%emt 0:01:28]} Qxb7 {[%emt 0:00:11]} 24. Ne4 {[%emt 0:00:13]} Qd5 {[%emt 0:00:18]} 25. Rae1 {[%emt 0:00:24]} g6 {[%emt 0:00:33]} 26. Bd2 {[%emt 0:00:08]} Bg7 {[%emt 0:00:02]} 27. Bc1 {[%emt 0:00:40]} Nf6 {[%emt 0:00:06]} 28. g4 {[%emt 0:00:10]} Nxe4 {[%emt 0:00:11]} 29. Bxe4 {[%emt 0:00:01]} Qxd6 {[%emt 0:00:02]} 30. Bd2 {[%emt 0:00:14]} Nd7 {[%emt 0:00:06]} 31. Bc1 {[%emt 0:00:01]} Nb6 {[%emt 0:00:01]} 32. f5 {[%emt 0:00:03]} exf5 {[%emt 0:00:10]} 33. gxf5 {[%emt 0:00:01]} Nd7 {[%emt 0:00:04]} 34. Bf4 {[%emt 0:00:06]} Qb6 {[%emt 0:00:09]} 35. Bg3 {[%emt 0:00:14]} Nf6 {[%emt 0:00:19]} 36. Bc2 {[%emt 0:00:01]} Nd5 {[%emt 0:00:25]} 37. Qf3 {[%emt 0:00:05]} Rcd8 {[%emt 0:00:11]} 38. Bh4 {[%emt 0:00:05]} Rd7 {[%emt 0:00:12]} 39. Be4 {[%emt 0:00:08]} Nf6 {[%emt 0:00:15]} 40. Bc2 {[%emt 0:00:05]} Qb7 {[%emt 0:00:16]} 41. Qxb7 {[%emt 0:00:02]} Rxb7 {[%emt 0:00:01]} 42. Bxf6 {[%emt 0:00:05]} Bxf6 {[%emt 0:00:02]} 43. fxg6 {[%emt 0:00:01]} fxg6 {[%emt 0:00:04]} 44. Re6 {[%emt 0:00:02]} Rbf7 {[%emt 0:00:14]} 45. Rd1 {[%emt 0:00:16]} Bh4 {[%emt 0:00:15]} 46. Be4 {[%emt 0:00:04]} Kg7 {[%emt 0:00:08]} 47. Rxa6 {[%emt 0:00:04]} Rf2 {[%emt 0:00:02]} 48. Ra7+ {[%emt 0:00:01]} Kh6 {[%emt 0:00:02]} 49. d5 {[%emt 0:00:05]} Rxb2 50. Rb7 Re8 51. Bf3 Re3 52. Rf1 1/2-1/2